bitfinex/quotes_SOLUSD_20250802
["timestamp","ask_amount","ask_price","bid_price","bid_amount"]
[1754099284328,0.03,164.8,164.79,47.52847118]
[1754099284561,0.03,164.8,164.79,51.61403018]
[1754099284855,0.03,164.8,164.79,47.52847118]
[1754099286462,0.03,164.8,164.79,43.28]
[1754099286641,0.03,164.8,164.79,46.84847118]
[1754099287156,0.03,164.8,164.79,47.52847118]
[1754099289564,0.03,164.8,164.79,137.09847118]
[1754099291937,0.03,164.8,164.79,139.52941718]
[1754099292856,0.03,164.8,164.79,137.09847118]
[1754099295673,0.03,164.8,164.79,132.17]
[1754099295877,0.03,164.8,164.79,136.41847118]
[1754099297076,0.03,164.8,164.79,137.09847118]
[1754099297646,0.03,164.8,164.79,136.41847118]
[1754099300479,0.03,164.8,164.79,132.17]
[1754099300778,0.03,164.8,164.79,136.41847118]
[1754099302578,0.03,164.8,164.79,137.09847118]
[1754099302950,0.03,164.8,164.79,136.41847118]
[1754099303977,0.03,164.8,164.79,137.09847118]
[1754099306766,0.03,164.8,164.79,46.84847118]
[1754099306974,0.03,164.8,164.79,96.59068528]
[1754099307158,0.03,164.8,164.79,100.43635528]
[1754099307546,0.03,164.8,164.79,83.44247056]
[1754099307966,0.7,164.8,164.79,8.09414118]
[1754099308248,0.7,164.8,164.79,46.78847118]
[1754099308958,0.03,164.8,164.79,46.78847118]
[1754099309752,0.7,164.8,164.79,42.54]
[1754099309946,0.7,164.8,164.76,4.24847118]
[1754099310151,0.7,164.8,164.74,6.07005391]
[1754099310152,4.24847118,164.79,164.74,8.49694218]
[1754099310457,0.7,164.8,164.75,46.78847118]
[1754099310458,0.67,164.78,164.75,46.78847118]
[1754099310648,0.67,164.78,164.76,4.24847118]
[1754099312175,0.69,164.78,164.77,4.24847118]
[1754099316278,0.69,164.78,164.77,93.81847118]
[1754099316481,0.69,164.78,164.77,89.57]
[1754099320778,0.69,164.78,164.76,4.24847118]
[1754099320965,0.69,164.78,164.75,93.81847118]
[1754099324778,0.69,164.77,164.75,93.81847118]
[1754099326589,0.69,164.77,164.76,4.24847118]
[1754099327884,0.03,164.8,164.76,4.24847118]
[1754099328092,0.69,164.78,164.76,4.24847118]
[1754099331004,0.69,164.78,164.76,93.81847118]
[1754099338597,0.03,164.8,164.77,4.91847118]
[1754099338901,0.72,164.8,164.77,4.91847118]
[1754099339278,0.03,164.8,164.77,4.24847118]
[1754099339899,0.72,164.8,164.77,4.91847118]
[1754099340194,0.72,164.8,164.77,4.24847118]
[1754099340399,0.69,164.79,164.76,136.33847118]
[1754099340701,0.69,164.79,164.76,93.81847118]
[1754099340882,0.03,164.78,164.76,94.53847118]
[1754099341695,0.03,164.78,164.77,4.24847118]
[1754099342206,0.03,164.78,164.76,93.81847118]
[1754099342499,0.7,164.78,164.75,89.57]
[1754099345798,0.7,164.78,164.73,94.59847118]
[1754099345975,0.7,164.78,164.73,93.87847118]
[1754099346175,4.24847118,164.77,164.73,132.13]
[1754099346510,0.67,164.76,164.73,132.13]
[1754099347098,0.67,164.75,164.73,132.13]
[1754099347706,0.67,164.74,164.73,89.63]
[1754099347901,0.67,164.74,164.73,0.06]
[1754099348602,4.91847118,164.74,164.73,0.06]
[1754099351297,0.67,164.74,164.73,0.06]
[1754099354914,26.67,164.74,164.73,0.06]
[1754099355119,4.91847118,164.74,164.73,0.06]
[1754099355489,30.91847118,164.74,164.73,0.06]
[1754099357317,4.91847118,164.74,164.73,0.06]
[1754099357522,70.27332632,164.74,164.73,0.06]
[1754099357733,75.38286612,164.74,164.73,0.06]
[1754099358299,71.13439494,164.74,164.73,0.06]
[1754099358526,75.38286612,164.74,164.73,0.06]
[1754099359899,70.27332632,164.74,164.73,0.06]
[1754099361707,75.38286612,164.74,164.73,0.06]
[1754099362204,70.27332632,164.74,164.73,0.06]
[1754099362397,75.36247326,164.74,164.73,0.06]
[1754099362823,70.27332632,164.74,164.73,0.06]
[1754099363122,70.30332632,164.74,164.73,0.06]
[1754099367333,27.80332632,164.74,164.73,0.06]
[1754099367831,16.78468397,164.73,164.72,0.06]
[1754099368022,21.70315515,164.73,164.72,0.06]
[1754099368725,24.13676315,164.73,164.72,0.06]
[1754099369236,30.20730282,164.73,164.72,0.06]
[1754099370553,21.03315515,164.72,164.71,0.06]
[1754099370830,70.31406335,164.72,164.71,0.06]
[1754099371630,72.74782035,164.72,164.71,0.06]
[1754099372505,16.78468397,164.71,164.7,0.06]
[1754099372705,38.73703987,164.71,164.7,0.06]
[1754099373239,41.17109287,164.71,164.7,0.06]
[1754099373735,47.24236965,164.71,164.7,0.06]
[1754099376037,30.24848493,164.71,164.7,0.06]
[1754099379442,47.24236965,164.71,164.69,0.06]
[1754099379739,81.23703987,164.7,164.69,0.06]
[1754099380033,83.67109187,164.7,164.69,0.06]
[1754099382025,47.24273728,164.7,164.69,0.06]
[1754099382344,89.74273728,164.7,164.69,0.06]
[1754099387654,29.53885256,164.7,164.69,0.06]
[1754099387955,69.60480056,164.7,164.69,0.77]
[1754099389345,69.60480056,164.7,164.69,0.06]
[1754099391357,87.30868528,164.7,164.69,0.06]
[1754099391656,92.39783222,164.7,164.69,0.06]
[1754099391849,94.83188522,164.7,164.69,0.06]
[1754099392042,77.8380005,164.7,164.69,0.06]
[1754099394959,94.83188522,164.7,164.69,0.06]
[1754099395336,89.74273828,164.7,164.69,0.06]
[1754099398058,16.78468397,164.63,164.61,0.71]
[1754099398260,63.51315515,164.63,164.61,0.71]
[1754099398639,63.51315515,164.63,164.6,0.06]
[1754099399037,63.51315515,164.63,164.6,0.77]
[1754099399961,69.5873822,164.63,164.6,0.77]
[1754099400291,31.09562375,164.65,164.62,0.77]
[1754099400456,26.1287789,164.67,164.62,5.01847118]
[1754099400779,26.0,164.63,164.62,4.30847118]
[1754099400942,42.48,164.66,164.62,4.30847118]
[1754099401141,42.48,164.66,164.63,4.24847118]
[1754099401449,42.48,164.66,164.64,0.2]
[1754099402271,42.48,164.66,164.64,4.44847118]
[1754099402570,4.24847118,164.69,164.65,0.2]
[1754099402741,5.12562375,164.72,164.67,4.98513248]
[1754099402943,59.26468397,164.71,164.68,0.2]
[1754099403235,16.78468397,164.71,164.68,0.2]
[1754099403449,59.26468397,164.71,164.69,0.2]
[1754099407563,16.78468397,164.71,164.7,0.2]
[1754099407773,59.26468397,164.71,164.7,0.2]
[1754099408343,59.26468397,164.71,164.69,0.2]
[1754099410869,59.26468397,164.71,164.67,4.98513248]
[1754099411077,59.26468397,164.71,164.68,0.2]
[1754099411241,42.48,164.71,164.68,0.2]
[1754099411448,42.48,164.71,164.69,0.2]
[1754099411668,42.49,164.72,164.69,0.2]
[1754099411869,42.49,164.72,164.7,0.2]
[1754099412173,26.0,164.71,164.7,0.2]
[1754099413383,0.03,164.72,164.7,0.2]
[1754099413890,0.03,164.72,164.69,4.98513248]
[1754099414248,0.03,164.72,164.69,5.18513248]
[1754099415285,0.73,164.72,164.68,4.98513248]
[1754099416586,0.73,164.72,164.68,5.18513248]
[1754099418561,43.16,164.71,164.66,5.18513248]
[1754099418760,0.7,164.7,164.66,5.18513248]
[1754099419177,42.46,164.71,164.67,0.2]
[1754099419178,43.16,164.71,164.67,0.2]
[1754099419676,43.16,164.71,164.67,89.77]
[1754099419979,0.7,164.7,164.67,94.55513248]
[1754099420280,42.46,164.71,164.67,94.75513248]
[1754099420492,43.16,164.71,164.67,94.75513248]
[1754099421690,11.08608474,164.72,164.67,94.75513248]
[1754099421873,42.49,164.72,164.69,4.98513248]
[1754099422258,42.49,164.72,164.7,0.2]
[1754099424072,42.49,164.72,164.69,94.55513248]
[1754099424271,42.49,164.72,164.69,94.75513248]
[1754099425067,43.19,164.72,164.69,94.55513248]
[1754099428489,0.73,164.72,164.69,94.55513248]
[1754099432576,0.03,164.72,164.69,94.75513248]
[1754099432902,0.03,164.72,164.69,92.95995489]
[1754099434197,0.03,164.72,164.69,92.75995489]
[1754099434402,0.74,164.72,164.69,92.75995489]
[1754099434983,0.03,164.72,164.69,92.95995489]
[1754099436003,0.03,164.72,164.7,3.18995489]
[1754099440480,0.03,164.72,164.71,3.38995489]
[1754099441005,0.03,164.72,164.71,92.95995489]
[1754099442811,0.03,164.72,164.71,94.75141246]
[1754099448209,0.03,164.72,164.71,100.82268924]
[1754099450811,0.03,164.72,164.71,117.60737321]
[1754099450997,0.03,164.72,164.71,267.10737321]
[1754099451308,0.03,164.73,164.72,42.78468397]
[1754099451510,0.03,164.73,164.72,329.86318725]
[1754099451708,0.03,164.73,164.72,329.45609643]
[1754099451909,0.03,164.73,164.72,331.88763343]
[1754099452411,0.03,164.73,164.72,337.95854163]
[1754099455215,0.03,164.73,164.72,335.52700463]
[1754099456424,0.03,164.73,164.72,276.12232066]
[1754099456716,0.74,164.73,164.72,318.54232066]
[1754099457103,0.03,164.73,164.72,318.54232066]
[1754099461136,0.71,164.75,164.74,115.51]
[1754099461315,0.03,164.76,164.74,162.89141246]
[1754099461522,0.03,164.76,164.75,4.98141246]
[1754099461722,0.03,164.76,164.74,157.91]
[1754099461918,0.03,164.76,164.75,4.98141246]
[1754099462616,0.7,164.76,164.75,4.98141246]
[1754099464927,0.7,164.76,164.75,3.18758429]
[1754099467037,0.7,164.76,164.75,92.69758429]
[1754099467533,0.03,164.76,164.75,92.69758429]
[1754099477545,0.7,164.76,164.75,92.69758429]
[1754099487763,0.03,164.76,164.75,92.69758429]
[1754099488726,0.7,164.76,164.75,92.69758429]
[1754099488925,0.7,164.76,164.75,135.07758429]
[1754099491762,0.7,164.76,164.75,131.89]
[1754099491937,0.7,164.76,164.75,135.07758429]
[1754099492546,0.7,164.76,164.75,131.89]
[1754099492738,0.7,164.76,164.75,135.07758429]
[1754099501868,0.7,164.76,164.75,131.89]
[1754099503366,0.7,164.76,164.75,135.07758429]
[1754099510682,0.7,164.76,164.75,131.89]
[1754099510983,0.7,164.76,164.75,135.07758429]
[1754099522481,0.7,164.76,164.75,131.89]
[1754099526281,0.7,164.76,164.75,135.07758429]
[1754099527785,0.7,164.76,164.75,131.89]
[1754099530765,0.7,164.76,164.75,89.51]
[1754099535370,0.7,164.76,164.74,0.06]
[1754099535570,0.03,164.76,164.74,3.24758429]
[1754099536369,0.72,164.75,164.74,0.06]
[1754099538394,26.76207099,164.75,164.74,0.06]
[1754099538693,57.88445563,164.75,164.74,0.06]
[1754099539286,71.00969199,164.75,164.74,0.06]
[1754099539486,76.12371105,164.75,164.74,0.06]
[1754099542367,71.00969199,164.75,164.74,0.06]
[1754099543685,76.12371105,164.75,164.74,0.06]
[1754099544381,71.00969199,164.75,164.74,0.06]
[1754099550698,113.80969199,164.75,164.74,0.06]
[1754099555715,110.6221077,164.75,164.74,0.06]
[1754099555874,113.80969199,164.75,164.74,0.06]
[1754099557008,113.83969199,164.75,164.74,0.06]
[1754099557700,87.83969199,164.75,164.74,0.06]
[1754099558275,87.83969199,164.75,164.72,0.06]
[1754099558276,42.78468397,164.73,164.72,0.06]
[1754099558475,94.78280793,164.73,164.72,0.06]
[1754099558679,95.47280793,164.73,164.72,1e-08]
[1754099559210,16.78468397,164.68,164.64,0.2]
[1754099559504,16.78468397,164.68,164.63,89.57]
[1754099559505,3.18758429,164.65,164.63,0.06]
[1754099559708,45.92758429,164.65,164.63,0.06]
[1754099560008,42.74,164.65,164.63,0.06]
[1754099560210,3.18758429,164.64,164.63,0.06]
[1754099560380,28.434349,164.67,164.64,0.2]
[1754099560582,42.74,164.66,164.64,0.2]
[1754099560781,68.74,164.67,164.64,3.38758429]
[1754099561006,68.74,164.67,164.65,0.2]
[1754099561322,16.78468397,164.68,164.65,3.38758429]
[1754099561483,16.78468397,164.68,164.65,3.18758429]
[1754099561683,16.78468397,164.68,164.66,0.2]
[1754099562089,42.74,164.69,164.66,3.38758429]
[1754099562398,42.74,164.69,164.67,0.2]
[1754099562610,42.74,164.69,164.66,3.18758429]
[1754099562785,42.74,164.69,164.67,0.2]
[1754099563115,59.52468397,164.69,164.68,0.2]
[1754099563500,59.52468397,164.69,164.67,0.2]
[1754099564037,59.52468397,164.69,164.65,3.18758429]
[1754099564201,59.52468397,164.69,164.66,0.2]
[1754099564607,4.07141425,164.68,164.66,0.2]
[1754099566326,4.07221794,164.68,164.66,0.2]
[1754099568205,4.07221794,164.68,164.65,3.38758429]
[1754099568517,4.07221794,164.68,164.66,0.2]
[1754099569491,4.07221794,164.68,164.65,3.18758429]
[1754099570014,4.76221794,164.68,164.65,3.18758429]
[1754099573846,7.25980223,164.68,164.63,3.24758429]
[1754099574142,50.60980223,164.67,164.63,0.06]
[1754099574349,4.07221794,164.66,164.63,0.06]
[1754099574552,4.76221794,164.66,164.63,0.06]
[1754099574729,4.07221794,164.66,164.63,0.06]
[1754099574935,0.69,164.65,164.63,0.06]
[1754099575338,4.76221794,164.65,164.63,0.06]
[1754099575524,0.69,164.65,164.63,0.06]
[1754099575729,4.76221794,164.65,164.63,0.06]
[1754099575929,0.69,164.65,164.63,0.06]
[1754099576144,4.76221794,164.65,164.63,0.06]
[1754099576344,0.69,164.65,164.63,3.24758429]
[1754099576518,4.76221794,164.65,164.63,3.24758429]
[1754099576718,4.07221794,164.66,164.63,3.24758429]
[1754099576918,4.76221794,164.65,164.63,3.24758429]
[1754099577126,0.69,164.65,164.63,3.24758429]
[1754099577332,4.76221794,164.65,164.63,3.24758429]
[1754099577535,0.69,164.65,164.63,3.24758429]
[1754099577822,4.76221794,164.65,164.63,3.24758429]
[1754099578042,0.69,164.65,164.63,3.24758429]
[1754099578341,4.76221794,164.65,164.63,3.24758429]
[1754099578543,42.66,164.67,164.63,3.24758429]
[1754099578544,4.07221794,164.66,164.63,3.24758429]
[1754099578722,4.07221794,164.65,164.64,3.18758429]
[1754099578927,4.07221794,164.66,164.64,3.38758429]
[1754099579126,4.07221794,164.66,164.65,3.18758429]
[1754099579336,4.07221794,164.66,164.65,3.38758429]
[1754099579847,4.07221794,164.68,164.65,3.38758429]
[1754099580045,4.07221794,164.67,164.66,3.18758429]
[1754099583553,4.07221794,164.67,164.65,3.18758429]
[1754099583759,4.07221794,164.66,164.65,3.18758429]
[1754099587870,4.07221794,164.66,164.64,89.51]
[1754099588043,4.08921626,164.65,164.64,89.51]
[1754099588366,4.08921626,164.65,164.64,92.69758429]
[1754099589865,4.08921626,164.66,164.64,135.45758429]
[1754099590049,5.80027242,164.7,164.65,3.38758429]
[1754099590371,4.08941872,164.69,164.66,0.2]
[1754099590542,4.08941872,164.68,164.66,0.2]
[1754099590738,4.08941872,164.67,164.66,0.2]
[1754099591052,4.08941872,164.7,164.67,0.2]
[1754099591244,4.08941872,164.69,164.67,0.2]
[1754099591565,4.08941872,164.68,164.67,0.2]
[1754099591773,4.08941872,164.68,164.67,132.07]
[1754099592070,4.08941872,164.71,164.67,132.07]
[1754099592242,4.08941872,164.7,164.68,0.2]
[1754099592444,0.74,164.72,164.68,0.2]
[1754099592664,4.08899508,164.71,164.7,3.18758429]
[1754099594770,0.03,164.72,164.7,52.0192297]
[1754099594968,0.03,164.72,164.71,3.38758429]
[1754099595470,0.03,164.72,164.71,9.45886107]
[1754099596963,0.03,164.72,164.71,11.25189996]
[1754099597160,0.03,164.72,164.71,4.98062318]
[1754099597385,0.74,164.72,164.71,47.54062318]
[1754099598874,0.03,164.72,164.71,47.54062318]
[1754099600178,0.03,164.72,164.71,137.05062318]
[1754099601952,0.03,164.72,164.71,137.11062318]
[1754099602355,0.03,164.72,164.71,137.31062318]
[1754099606580,0.03,164.72,164.71,143.38189996]
[1754099607553,0.03,164.72,164.71,137.11062318]
[1754099614278,0.03,164.72,164.71,143.38189996]
[1754099616680,0.03,164.72,164.71,143.18189996]
[1754099617472,0.03,164.72,164.71,143.38189996]
[1754099617672,0.03,164.72,164.71,145.81402896]
[1754099618073,0.03,164.72,164.71,145.61402896]
[1754099618889,0.03,164.72,164.71,143.82087574]
[1754099622261,0.03,164.72,164.71,169.82087574]
[1754099626792,0.72,164.73,164.72,89.48]
[1754099626968,0.72,164.73,164.72,92.66746996]
[1754099627392,0.72,164.73,164.72,95.09945096]
[1754099627973,0.75,164.74,164.72,101.17019596]
[1754099628175,0.75,164.74,164.73,45.58746996]
[1754099629394,0.03,164.74,164.73,51.85800963]
[1754099629582,0.03,164.74,164.73,52.46506359]
[1754099630288,0.03,164.74,164.73,54.89674859]
[1754099631495,0.03,164.74,164.73,54.69674859]
[1754099632701,0.03,164.75,164.74,89.45]
[1754099632879,0.75,164.75,164.74,92.63746996]
[1754099633373,0.75,164.75,164.74,95.06915496]
[1754099633581,0.75,164.75,164.74,98.70764113]
[1754099640506,0.03,164.75,164.74,98.70764113]
[1754099641909,0.03,164.75,164.74,101.13932613]
[1754099644897,0.03,164.76,164.74,101.94634324]
[1754099645211,0.03,164.76,164.75,45.58746996]
[1754099645819,0.03,164.76,164.75,135.03746996]
[1754099646109,0.03,164.76,164.75,137.46900696]
[1754099646315,0.71,164.76,164.75,5.61900696]
[1754099646617,0.71,164.76,164.75,45.58746996]
[1754099650030,0.71,164.76,164.75,42.4]
[1754099650316,0.71,164.76,164.75,45.58746996]
[1754099650912,0.71,164.76,164.72,29.18746996]
[1754099651105,4.78520982,164.76,164.72,46.06746996]
[1754099651416,4.78520982,164.76,164.72,135.51746996]
[1754099651417,0.68,164.75,164.72,135.51746996]
[1754099652390,0.68,164.75,164.73,3.18746996]
[1754099653813,0.68,164.75,164.74,3.18746996]
[1754099654029,0.71,164.76,164.74,46.04746996]
[1754099654199,0.03,164.76,164.75,3.18746996]
[1754099654893,0.03,164.76,164.75,4.98010068]
[1754099656401,0.03,164.76,164.75,94.43010068]
[1754099659917,0.03,164.76,164.75,95.09010068]
[1754099661615,0.03,164.76,164.75,101.15990341]
[1754099662031,0.03,164.76,164.75,94.43010068]
[1754099662208,0.03,164.76,164.75,137.23010068]
[1754099662406,0.71,164.76,164.75,137.23010068]
[1754099662826,0.03,164.76,164.75,137.23010068]
[1754099663403,0.03,164.76,164.75,137.89010068]
[1754099664001,0.03,164.76,164.75,137.23010068]
[1754099665632,0.71,164.76,164.75,137.23010068]
[1754099666407,0.71,164.76,164.75,137.29010068]
[1754099667432,4.80431203,164.76,164.75,132.31]
[1754099667624,4.80431203,164.76,164.75,89.51]
[1754099675440,4.12431203,164.76,164.75,93.38826523]
[1754099675639,0.03,164.76,164.75,93.38826523]
[1754099678724,0.03,164.76,164.75,99.45806796]
[1754099680823,0.03,164.76,164.75,101.24855556]
[1754099681528,0.03,164.76,164.75,103.67979756]
[1754099682124,0.03,164.76,164.75,57.6214618]
[1754099685850,0.03,164.76,164.75,147.0714618]
[1754099686147,0.03,164.76,164.75,146.46448153]
[1754099686725,0.03,164.77,164.75,146.46448153]
[1754099686928,0.68,164.82,164.79,89.39]
[1754099687145,0.68,164.82,164.81,4.97875283]
[1754099687731,7.93418222,164.86,164.81,4.97875283]
[1754099687938,0.68,164.83,164.82,47.65875283]
[1754099688442,0.68,164.83,164.82,42.68]
[1754099688744,0.68,164.83,164.82,47.65875283]
[1754099690446,0.68,164.83,164.82,42.68]
[1754099691753,0.68,164.83,164.82,137.04875283]
[1754099695160,0.68,164.83,164.82,132.07]
[1754099695346,0.68,164.83,164.82,137.04875283]
[1754099696038,7.93418222,164.86,164.82,137.73875283]
[1754099696039,0.68,164.85,164.82,137.73875283]
[1754099697256,0.68,164.85,164.83,4.97875283]
[1754099697563,3.84566997,164.86,164.83,4.97875283]
[1754099697746,0.68,164.84,164.83,94.36875283]
[1754099699355,0.68,164.84,164.83,89.39]
[1754099702558,0.65,164.85,164.83,89.39]
[1754099703067,3.84566997,164.86,164.84,46.50479942]
[1754099703242,3.84566997,164.86,164.85,3.18479942]
[1754099703554,3.84566997,164.86,164.85,3.90479942]
[1754099704578,4.49566997,164.86,164.84,42.6]
[1754099704743,0.65,164.85,164.84,42.72]
[1754099705071,4.49566997,164.86,164.84,45.90479942]
[1754099705237,3.84566997,164.86,164.84,45.90479942]
[1754099705443,3.84566997,164.86,164.85,3.18479942]
[1754099706250,3.84566997,164.86,164.85,3.90479942]
[1754099708172,3.84566997,164.86,164.85,3.18479942]
[1754099708356,3.84566997,164.86,164.85,93.29479942]
[1754099710366,3.84566997,164.86,164.85,99.36092013]
[1754099710873,3.84566997,164.86,164.85,103.20659013]
[1754099711072,3.84566997,164.86,164.85,103.8132022]
[1754099711274,3.84566997,164.86,164.85,103.20659013]
[1754099715581,0.03,164.88,164.87,3.18479942]
[1754099715783,0.03,164.88,164.87,45.92479942]
[1754099716278,0.68,164.88,164.87,45.92479942]
[1754099716977,0.68,164.88,164.87,42.74]
[1754099717882,0.68,164.88,164.87,45.92479942]
[1754099718985,0.03,164.88,164.87,45.92479942]
[1754099719983,0.03,164.88,164.87,42.74]
[1754099721366,0.03,164.88,164.87,128.28433003]
[1754099722071,0.03,164.88,164.87,131.46912945]
[1754099722270,0.03,164.88,164.87,132.18912945]
[1754099722986,0.03,164.88,164.87,128.28433003]
[1754099723482,0.68,164.88,164.87,128.28433003]
[1754099724077,0.03,164.88,164.87,128.28433003]
[1754099725983,0.03,164.88,164.87,132.18912945]
[1754099727969,0.03,164.88,164.87,131.46912945]
[1754099728369,0.03,164.88,164.87,132.18912945]
[1754099733693,0.03,164.88,164.87,129.00433003]
[1754099734005,0.03,164.88,164.87,132.18912945]
[1754099734498,0.72,164.88,164.87,128.28433003]
[1754099735616,0.03,164.88,164.87,128.28433003]
[1754099736001,0.03,164.88,164.87,132.18912945]
[1754099743719,0.03,164.88,164.87,131.46912945]
[1754099746796,0.03,164.88,164.87,128.28433003]
[1754099746996,0.72,164.88,164.87,131.46912945]
[1754099749014,0.03,164.88,164.87,131.46912945]
[1754099750005,0.03,164.88,164.87,132.18912945]
[1754099754336,0.03,164.88,164.87,129.00433003]
[1754099754503,0.03,164.88,164.87,132.18912945]
[1754099755309,0.03,164.88,164.87,129.00433003]
[1754099755523,0.03,164.88,164.87,132.18912945]
[1754099756028,0.03,164.88,164.87,131.46912945]
[1754099757145,0.03,164.88,164.87,128.28433003]
[1754099757437,0.03,164.88,164.87,131.46912945]
[1754099759537,0.03,164.88,164.87,132.18912945]
[1754099762041,0.7,164.88,164.85,85.54433003]
[1754099762240,4.09271174,164.87,164.85,128.30433003]
[1754099762456,0.67,164.86,164.85,128.30433003]
[1754099763829,0.67,164.86,164.85,85.54433003]
[1754099764031,7.94895506,164.86,164.85,85.54433003]
[1754099764232,7.94895506,164.86,164.84,0.06]
[1754099764233,4.76415564,164.86,164.84,0.06]
[1754099764540,4.76415564,164.85,164.84,0.06]
[1754099764845,0.67,164.85,164.84,0.06]
[1754099765141,4.76415564,164.85,164.84,0.06]
[1754099765344,0.67,164.85,164.84,0.06]
[1754099765517,4.76415564,164.85,164.84,0.06]
[1754099765719,0.67,164.85,164.84,0.06]
[1754099765920,4.76415564,164.85,164.84,0.06]
[1754099766124,0.67,164.85,164.84,0.06]
[1754099770159,0.7,164.88,164.84,46.64479942]
[1754099770340,4.78598685,164.88,164.85,3.18479942]
[1754099770540,4.78598685,164.88,164.85,3.86479942]
[1754099773146,0.67,164.87,164.84,45.94479942]
[1754099773349,0.67,164.87,164.84,46.62479942]
[1754099773722,0.67,164.86,164.84,42.76]
[1754099773927,0.67,164.86,164.84,0.06]
[1754099774532,0.67,164.86,164.84,85.60433003]
[1754099776436,0.67,164.85,164.84,85.60433003]
[1754099787253,3.85479942,164.85,164.84,0.06]
[1754099787753,0.67,164.85,164.84,0.06]
[1754099788152,4.75598685,164.85,164.84,0.06]
[1754099788356,4.08051144,164.85,164.84,0.06]
[1754099788554,9.92027538,164.87,164.84,0.74]
[1754099788555,4.08051144,164.86,164.84,0.74]
[1754099788864,4.08051144,164.86,164.84,0.06]
[1754099789167,4.75051144,164.86,164.84,0.06]
[1754099789747,4.08051144,164.86,164.84,0.06]
[1754099789944,6.76508875,164.88,164.85,0.68]
[1754099789945,7.26531086,164.87,164.85,0.68]
[1754099790150,7.93531086,164.87,164.84,0.74]
[1754099790866,7.26531086,164.87,164.85,0.67]
[1754099791066,26.0,164.87,164.86,0.67]
[1754099791976,26.0,164.87,164.85,0.67]
[1754099795570,0.03,164.88,164.86,0.67]
[1754099795776,0.03,164.88,164.86,0.73]
[1754099796150,26.72,164.87,164.86,0.06]
[1754099796357,30.80128146,164.87,164.86,0.06]
[1754099797354,30.11128146,164.87,164.86,0.06]
[1754099799789,30.80128146,164.87,164.86,0.06]
[1754099800170,30.11128146,164.87,164.86,0.06]
[1754099802169,4.11128146,164.87,164.86,0.06]
[1754099802378,0.03,164.87,164.86,0.06]
[1754099802774,0.03,164.87,164.86,0.73]
[1754099804091,0.03,164.87,164.86,132.09912945]
[1754099804269,0.03,164.87,164.86,46.55479942]
[1754099804670,0.03,164.87,164.86,52.62055217]
[1754099813197,0.03,164.87,164.86,138.1648822]
[1754099819209,0.03,164.88,164.87,88.69912945]
[1754099819710,0.03,164.88,164.87,95.43451429]
[1754099820012,0.03,164.88,164.87,261.71919826]
[1754099821700,0.68,164.96,164.88,16.78468397]
[1754099821915,0.68,164.97,164.95,3.18479942]
[1754099822109,0.68,164.96,164.95,3.18479942]
[1754099822319,0.68,164.96,164.94,43.0]
[1754099822511,0.68,164.96,164.94,46.18479942]
[1754099822813,0.68,164.95,164.94,46.18479942]
[1754099825709,0.68,164.95,164.94,43.0]
[1754099825886,0.68,164.95,164.92,43.02]
[1754099826089,0.68,164.95,164.91,46.20479942]
[1754099826288,0.68,164.95,164.91,131.71912945]
[1754099826833,3.18479942,164.94,164.91,85.51433003]
[1754099826988,0.68,164.93,164.91,85.51433003]
[1754099827695,0.68,164.92,164.91,85.51433003]
[1754099829218,6.06170818,164.97,164.91,85.51433003]
[1754099829418,0.68,164.93,164.91,85.51433003]
[1754099829588,0.68,164.92,164.91,85.51433003]